fUSD/lending_fUSD_20251003
["ID","MTS","AMOUNT","RATE_DAILY","PERIOD"]
[388947899,1759535444467,-151.0,0.00017,2]
[388947900,1759535444477,-478.705467,0.00017,2]
[388947901,1759535444486,-152.700273,0.00017,2]
[388947902,1759535444495,-151.0,0.00017,2]
[388947903,1759535444506,-478.705467,0.00017,2]
[388947904,1759535444516,-151.0,0.00017,2]
[388947905,1759535444526,-478.705467,0.00017,2]
[388947906,1759535444539,-151.0,0.00017,2]
[388947907,1759535444548,-478.705467,0.00017,2]
[388947908,1759535444557,-151.0,0.00017,2]
[388947909,1759535444570,-151.0,0.00017,2]
[388947910,1759535444581,-478.705467,0.00017,2]
[388947911,1759535444591,-151.0,0.00017,2]
[388947912,1759535444604,-478.705467,0.00017,2]
[388947913,1759535444614,-151.0,0.00017,2]
[388947914,1759535444624,-478.705467,0.00017,2]
[388947915,1759535444637,-151.0,0.00017,2]
[388947916,1759535444647,-151.0,0.00017,2]
[388947917,1759535444657,-478.705473,0.00017,2]
[388947918,1759535444670,-151.0,0.00017,2]
[388947919,1759535444680,-151.0,0.00017,2]
[388947920,1759535444691,-151.0,0.00017,2]
[388947921,1759535444700,-151.0,0.00017,2]
[388947922,1759535444710,-151.0,0.00017,2]
[388947923,1759535444720,-151.0,0.00017,2]
[388947924,1759535444729,-151.0,0.00017,2]
[388947926,1759535444738,-194.342956,0.00017,2]
[388947927,1759535444748,-151.0,0.00017,2]
[388947928,1759535444758,-268.817193,0.00017,2]
[388947929,1759535444768,-1869.319066,0.00017,2]
[388947930,1759535444778,-1869.319066,0.00017,2]
[388947931,1759535444787,-1869.319066,0.00017,2]
[388947932,1759535444796,-1869.319066,0.00017,2]
[388947933,1759535444806,-1869.319066,0.00017,2]
[388947934,1759535444815,-1869.319066,0.00017,2]
[388947935,1759535444824,-1869.319066,0.00017,2]
[388947936,1759535444834,-1869.319066,0.00017,2]
[388947937,1759535444846,-1869.319066,0.00017,2]
[388947938,1759535444856,-1869.319066,0.00017,2]
[388947939,1759535444870,-1869.319066,0.00017,2]
[388947940,1759535444880,-1869.319066,0.00017,2]
[388947941,1759535444890,-1869.319066,0.00017,2]
[388947942,1759535444900,-1869.319066,0.00017,2]
[388947943,1759535444910,-1869.319066,0.00017,2]
[388947944,1759535444920,-1869.319066,0.00017,2]
[388947945,1759535444930,-1869.319066,0.00017,2]
[388947946,1759535444940,-1869.319066,0.00017,2]
[388947947,1759535444950,-1869.319066,0.00017,2]
[388947948,1759535444959,-1869.319056,0.00017,2]
[388947949,1759535444969,-151.0,0.00017,2]
[388947950,1759535444979,-151.0,0.00017,2]
[388947951,1759535444989,-151.0,0.00017,2]
[388947952,1759535445000,-151.0,0.00017,2]
[388947953,1759535445010,-151.0,0.00017,2]
[388947954,1759535445020,-151.0,0.00017,2]
[388947955,1759535445030,-151.0,0.00017,2]
[388947956,1759535445040,-151.0,0.00017,2]
[388947957,1759535445050,-151.0,0.00017,2]
[388947958,1759535445060,-151.0,0.00017,2]
[388947959,1759535445070,-151.0,0.00017,2]
[388947960,1759535445079,-200.84282,0.00017,2]
[388947961,1759535445089,-151.0,0.00017,2]
[388947962,1759535445099,-151.0,0.00017,2]
[388947963,1759535445109,-151.0,0.00017,2]
[388947964,1759535445119,-159.618332,0.00017,2]
[388947965,1759535445129,-284.895666,0.00017,2]
[388947966,1759535445138,-284.895666,0.00017,2]
[388947967,1759535445148,-284.895666,0.00017,2]
[388947968,1759535445158,-284.895666,0.00017,2]
[388947969,1759535445167,-284.895666,0.00017,2]
[388947970,1759535445177,-284.895666,0.00017,2]
[388947971,1759535445187,-284.895666,0.00017,2]
[388947972,1759535445198,-284.895666,0.00017,2]
[388947973,1759535445208,-284.895666,0.00017,2]
[388947974,1759535445218,-284.895666,0.00017,2]
[388947975,1759535445230,-284.895666,0.00017,2]
[388947976,1759535445241,-284.895666,0.00017,2]
[388947977,1759535445250,-284.895666,0.00017,2]
[388947978,1759535445260,-284.895666,0.00017,2]
[388947979,1759535445270,-561.006626,0.00017,2]
[388947980,1759535445280,-284.895666,0.00017,2]
[388947981,1759535445290,-284.895666,0.00017,2]
[388947982,1759535445300,-561.006626,0.00017,2]
[388947983,1759535445310,-561.006626,0.00017,2]
[388947984,1759535445319,-284.895666,0.00017,2]
[388947985,1759535445329,-284.895666,0.00017,2]
[388947986,1759535445339,-561.006626,0.00017,2]
[388947987,1759535445349,-561.006626,0.00017,2]
[388947988,1759535445359,-284.895666,0.00017,2]
[388947989,1759535445369,-284.895664,0.00017,2]
[388947990,1759535445378,-561.006626,0.00017,2]
[388947991,1759535445387,-561.006626,0.00017,2]
[388947992,1759535445396,-561.006626,0.00017,2]
[388947993,1759535445406,-561.006626,0.00017,2]
[388947994,1759535445416,-561.006626,0.00017,2]
[388947995,1759535445426,-561.006626,0.00017,2]
[388947996,1759535445435,-561.006626,0.00017,2]
[388947997,1759535445445,-561.006626,0.00017,2]
[388947998,1759535445455,-151.0,0.00017,2]
[388947999,1759535445465,-151.0,0.00017,2]
[388948000,1759535445475,-154.785442,0.00017,2]
[388948001,1759535445484,-561.006626,0.00017,2]
[388948002,1759535445494,-561.006626,0.00017,2]
[388948003,1759535445504,-561.006626,0.00017,2]
[388948004,1759535445515,-561.006626,0.00017,2]
[388948005,1759535445525,-561.006626,0.00017,2]
[388948006,1759535445541,-561.006626,0.00017,2]
[388948007,1759535445551,-561.006629,0.00017,2]
[388948008,1759535445562,-721.353347,0.00017,2]
[388948009,1759535445571,-721.353347,0.00017,2]
[388948010,1759535445581,-721.353347,0.00017,2]
[388948011,1759535445591,-721.353347,0.00017,2]
[388948012,1759535445600,-721.353347,0.00017,2]
[388948013,1759535445752,-721.353347,0.00017,2]
[388948014,1759535445762,-721.353347,0.00017,2]
[388948015,1759535445772,-721.353347,0.00017,2]
[388948016,1759535445781,-721.353347,0.00017,2]
[388948017,1759535445791,-721.353347,0.00017,2]
[388948018,1759535445800,-721.353347,0.00017,2]
[388948019,1759535445809,-721.353347,0.00017,2]
[388948020,1759535445819,-721.353347,0.00017,2]
[388948021,1759535445830,-721.353347,0.00017,2]
[388948022,1759535445841,-183.420914,0.00017,2]
[388948023,1759535445851,-721.353347,0.00017,2]
[388948024,1759535445861,-183.420914,0.00017,2]
[388948025,1759535445871,-721.353347,0.00017,2]
[388948026,1759535445880,-183.420914,0.00017,2]
[388948027,1759535445890,-721.353347,0.00017,2]
[388948028,1759535445900,-183.420914,0.00017,2]
[388948029,1759535445910,-721.353347,0.00017,2]
[388948030,1759535445919,-183.420914,0.00017,2]
[388948031,1759535445928,-721.353347,0.00017,2]
[388948032,1759535445938,-151.0,0.00017,2]
[388948033,1759535445947,-721.353344,0.00017,2]
[388948034,1759535445956,-183.420914,0.00017,2]
[388948036,1759535445966,-151.0,0.00017,2]
[388948038,1759535445975,-183.420914,0.00017,2]
[388948039,1759535445984,-183.420914,0.00017,2]
[388948040,1759535445993,-183.420914,0.00017,2]
[388948041,1759535446002,-183.420914,0.00017,2]
[388948042,1759535446011,-183.420914,0.00017,2]
[388948043,1759535446021,-183.420914,0.00017,2]
[388948044,1759535446030,-183.420914,0.00017,2]
[388948045,1759535446040,-183.420914,0.00017,2]
[388948046,1759535446049,-183.420914,0.00017,2]
[388948047,1759535446058,-183.420914,0.00017,2]
[388948048,1759535446068,-183.420914,0.00017,2]
[388948049,1759535446077,-183.420914,0.00017,2]
[388948050,1759535446086,-183.420914,0.00017,2]
[388948051,1759535446095,-183.420907,0.00017,2]
[388948052,1759535446105,-191.121726,0.00017,2]
[388948053,1759535446115,-191.121726,0.00017,2]
[388948054,1759535446124,-191.121726,0.00017,2]
[388948055,1759535446133,-151.0,0.00017,2]
[388948056,1759535446142,-191.121726,0.00017,2]
[388948057,1759535446151,-151.0,0.00017,2]
[388948058,1759535446160,-191.121726,0.00017,2]
[388948059,1759535446170,-151.0,0.00017,2]
[388948060,1759535446179,-191.121726,0.00017,2]
[388948061,1759535446188,-151.0,0.00017,2]
[388948062,1759535446197,-191.121726,0.00017,2]
[388948063,1759535446206,-191.121726,0.00017,2]
[388948064,1759535446215,-151.0,0.00017,2]
[388948065,1759535446224,-191.121726,0.00017,2]
[388948066,1759535446233,-151.0,0.00017,2]
[388948067,1759535446242,-191.121726,0.00017,2]
[388948068,1759535446255,-151.0,0.00017,2]
[388948069,1759535446265,-191.121726,0.00017,2]
[388948070,1759535446274,-151.0,0.00017,2]
[388948071,1759535446283,-155.328471,0.00017,2]
[388948072,1759535446293,-191.121726,0.00017,2]
[388948073,1759535446302,-151.0,0.00017,2]
[388948074,1759535446311,-191.121726,0.00017,2]
[388948075,1759535446320,-151.0,0.00017,2]
[388948076,1759535446328,-155.328471,0.00017,2]
[388948077,1759535446337,-191.121726,0.00017,2]
[388948078,1759535446346,-151.0,0.00017,2]
[388948079,1759535446356,-155.328471,0.00017,2]
[388948080,1759535446364,-191.121726,0.00017,2]
[388948081,1759535446374,-151.0,0.00017,2]
[388948082,1759535446382,-155.328471,0.00017,2]
[388948083,1759535446391,-151.0,0.00017,2]
[388948084,1759535446400,-155.328471,0.00017,2]
[388948085,1759535446409,-155.328471,0.00017,2]
[388948086,1759535446419,-155.328471,0.00017,2]
[388948087,1759535446428,-155.328471,0.00017,2]
[388948088,1759535446437,-151.0,0.00017,2]
[388948089,1759535446447,-155.328471,0.00017,2]
[388948090,1759535446456,-151.0,0.00017,2]
[388948091,1759535446465,-155.328471,0.00017,2]
[388948092,1759535446474,-155.328471,0.00017,2]
[388948093,1759535446483,-151.0,0.00017,2]
[388948094,1759535446492,-155.328471,0.00017,2]
[388948095,1759535446501,-155.328471,0.00017,2]
[388948096,1759535446510,-155.328471,0.00017,2]
[388948097,1759535446519,-151.0,0.00017,2]
[388948098,1759535446530,-151.0,0.00017,2]
[388948099,1759535446540,-155.328471,0.00017,2]
[388948100,1759535446550,-151.0,0.00017,2]
[388948101,1759535446562,-238.060555,0.00017,2]
[388948102,1759535446572,-155.328471,0.00017,2]
[388948103,1759535446581,-151.0,0.00017,2]
[388948104,1759535446591,-155.328471,0.00017,2]
[388948105,1759535446600,-155.328471,0.00017,2]
[388948106,1759535446609,-155.328471,0.00017,2]
[388948107,1759535446618,-155.328463,0.00017,2]
[388948108,1759535446628,-151.0,0.00017,2]
[388948109,1759535446637,-151.0,0.00017,2]
[388948110,1759535446646,-151.0,0.00017,2]
[388948111,1759535446656,-151.0,0.00017,2]
[388948112,1759535446665,-637.866643,0.00017,2]
[388948113,1759535446674,-637.866643,0.00017,2]
[388948114,1759535446683,-637.866643,0.00017,2]
[388948115,1759535446692,-637.866643,0.00017,2]
[388948116,1759535446701,-637.866643,0.00017,2]
[388948117,1759535446710,-637.866643,0.00017,2]
[388948118,1759535446719,-637.866643,0.00017,2]
[388948119,1759535446728,-637.866643,0.00017,2]
[388948120,1759535446737,-191.121726,0.00017,2]
[388948121,1759535446747,-637.866643,0.00017,2]
[388948122,1759535446756,-191.121726,0.00017,2]
[388948123,1759535446768,-637.866643,0.00017,2]
[388948124,1759535446778,-191.121726,0.00017,2]
[388948125,1759535446788,-637.866643,0.00017,2]
[388948126,1759535446797,-235.653001,0.00017,2]
[388948127,1759535446806,-191.121726,0.00017,2]
[388948128,1759535446815,-637.866643,0.00017,2]
[388948129,1759535446827,-235.653001,0.00017,2]
[388948130,1759535446836,-191.121724,0.00017,2]
[388948131,1759535446846,-637.866643,0.00017,2]
[388948132,1759535446856,-235.653001,0.00017,2]
[388948133,1759535446865,-151.0,0.00017,2]
[388948134,1759535446874,-235.653001,0.00017,2]
[388948135,1759535446883,-637.866643,0.00017,2]
[388948136,1759535446893,-151.0,0.00017,2]
[388948137,1759535446902,-235.653001,0.00017,2]
[388948138,1759535446912,-637.866643,0.00017,2]
[388948139,1759535446921,-151.0,0.00017,2]
[388948140,1759535446930,-235.653001,0.00017,2]
[388948141,1759535446939,-637.866643,0.00017,2]
[388948142,1759535446948,-151.0,0.00017,2]
[388948143,1759535446958,-235.653001,0.00017,2]
[388948144,1759535446967,-637.866643,0.00017,2]
[388948145,1759535446976,-151.0,0.00017,2]
[388948146,1759535446985,-235.653001,0.00017,2]
[388948147,1759535446995,-637.866643,0.00017,2]
[388948148,1759535447004,-151.0,0.00017,2]
[388948149,1759535447013,-235.653001,0.00017,2]
[388948150,1759535447023,-637.866643,0.00017,2]
[388948151,1759535447032,-151.0,0.00017,2]
[388948152,1759535447042,-235.653001,0.00017,2]
[388948153,1759535447051,-637.866634,0.00017,2]
[388948154,1759535447060,-151.0,0.00017,2]
[388948155,1759535447069,-235.653001,0.00017,2]
[388948156,1759535447078,-151.0,0.00017,2]
[388948157,1759535447088,-235.653001,0.00017,2]
[388948158,1759535447097,-151.0,0.00017,2]
[388948159,1759535447106,-235.653001,0.00017,2]
[388948160,1759535447116,-151.0,0.00017,2]
[388948161,1759535447125,-223.566612,0.00017,2]
[388948162,1759535447135,-235.653001,0.00017,2]
[388948163,1759535447144,-235.653001,0.00017,2]
[388948164,1759535447153,-235.653001,0.00017,2]
[388948165,1759535447162,-235.653001,0.00017,2]
[388948166,1759535447171,-235.653001,0.00017,2]
[388948167,1759535447180,-235.653001,0.00017,2]
[388948168,1759535447189,-235.652995,0.00017,2]
[388948169,1759535447198,-200.0,0.00017,2]
[388948170,1759535447208,-151.0,0.00017,2]
[388948171,1759535447217,-151.0,0.00017,2]
[388948172,1759535447226,-151.0,0.00017,2]
[388948173,1759535447235,-151.0,0.00017,2]
[388948174,1759535447244,-151.0,0.00017,2]
[388948175,1759535447253,-151.0,0.00017,2]
[388948176,1759535447263,-161.222846,0.00017,2]
[388948177,1759535447273,-151.0,0.00017,2]
[388948178,1759535447282,-151.0,0.00017,2]
[388948179,1759535447291,-151.0,0.00017,2]
[388948180,1759535447300,-151.0,0.00017,2]
[388948181,1759535447310,-151.0,0.00017,2]
[388948182,1759535447318,-151.0,0.00017,2]
[388948183,1759535447327,-151.0,0.00017,2]
[388948184,1759535447336,-151.0,0.00017,2]
[388948185,1759535447351,-151.0,0.00017,2]
[388948186,1759535447359,-151.0,0.00017,2]
[388948187,1759535447369,-151.0,0.00017,2]
[388948188,1759535447378,-151.0,0.00017,2]
[388948189,1759535447387,-151.0,0.00017,2]
[388948190,1759535447396,-151.0,0.00017,2]
[388948191,1759535447405,-261.649345,0.00017,2]
[388948192,1759535447415,-7762.10820093,0.00017009,2]
[388948193,1759535447423,-1079.0,0.0001701,2]
[388948194,1759535447432,-391.0,0.00017025,2]
[388948195,1759535447441,-151.0,0.00017055,2]
[388948196,1759535447450,-151.0,0.00017055,2]
[388948197,1759535447462,-217.0,0.00017064,2]
[388948198,1759535447471,-680.89,0.00017073,2]
[388948199,1759535447479,-326.94,0.00017073,2]
[388948200,1759535447488,-662.0,0.00017085,2]
[388948201,1759535447497,-290.40281212,0.00017097,2]
[388948202,1759535447506,-545.4,0.000171,2]
[388948203,1759535447515,-150.0,0.000171,2]
[388948204,1759535447524,-150.0,0.000171,2]
[388948205,1759535447533,-1197.07,0.000171,2]
[388948206,1759535447541,-412.7,0.000171,2]
[388948207,1759535447550,-1197.07,0.000171,2]
[388948208,1759535447559,-452.04,0.000171,2]
[388948209,1759535447568,-1197.07,0.000171,2]
[388948210,1759535447576,-1197.07,0.000171,2]
[388948211,1759535447585,-1197.07,0.000171,2]
[388948212,1759535447594,-1197.07,0.000171,2]
[388948213,1759535447603,-1197.07,0.000171,2]
[388948214,1759535447612,-1197.07,0.000171,2]
[388948215,1759535447620,-249.87,0.000171,2]
[388948216,1759535447631,-676.7,0.000171,2]
[388948217,1759535447640,-807.29,0.000171,2]
[388948218,1759535447650,-480.95,0.000171,2]
[388948219,1759535447659,-473.79,0.000171,2]
[388948220,1759535447669,-807.29,0.000171,2]
[388948221,1759535447678,-473.79,0.000171,2]
[388948222,1759535447687,-807.29,0.000171,2]
[388948223,1759535447696,-825.4,0.000171,2]
[388948224,1759535447707,-473.79,0.000171,2]
[388948225,1759535447717,-807.29,0.000171,2]
[388948226,1759535447728,-473.79,0.000171,2]
[388948227,1759535447737,-807.29,0.000171,2]
[388948228,1759535447746,-818.51,0.000171,2]
[388948229,1759535447755,-382.0,0.000171,2]
[388948230,1759535447764,-545.4,0.000171,2]
[388948231,1759535447774,-1197.07,0.000171,2]
[388948232,1759535447783,-545.4,0.000171,2]
[388948233,1759535447793,-167.84,0.000171,2]
[388948234,1759535447803,-150.0,0.000171,2]
[388948235,1759535447814,-150.0,0.000171,2]
[388948236,1759535447823,-1613.48,0.000171,2]
[388948237,1759535447834,-946.69,0.000171,2]
[388948238,1759535447843,-412.7,0.000171,2]
[388948239,1759535447853,-1197.07,0.000171,2]
[388948240,1759535447862,-167.84,0.000171,2]
[388948241,1759535447872,-545.4,0.000171,2]
[388948242,1759535447881,-150.0,0.000171,2]
[388948243,1759535447892,-412.7,0.000171,2]
[388948244,1759535447902,-150.0,0.000171,2]
[388948245,1759535447911,-545.4,0.000171,2]
[388948246,1759535447920,-1197.07,0.000171,2]
[388948247,1759535447929,-150.0,0.000171,2]
[388948248,1759535447939,-167.84,0.000171,2]
[388948249,1759535447948,-412.7,0.000171,2]
[388948250,1759535447957,-150.0,0.000171,2]
[388948251,1759535447966,-690.0,0.000171,2]
[388948252,1759535447976,-362.0,0.00017121,2]
[388948253,1759535447985,-168.0,0.00017122,2]
[388948254,1759535447994,-200.0,0.0001717,2]
[388948255,1759535448003,-192.51994186,0.0001717,2]
[388948256,1759535448012,-200.0,0.0001717,2]
[388948257,1759535448022,-200.0,0.0001717,2]
[388948258,1759535448031,-150.0,0.00017178,2]
[388948259,1759535448040,-216.59,0.00017178,2]
[388948260,1759535448049,-246.158,0.00017178,2]
[388948261,1759535448058,-150.0,0.00017178,2]
[388948262,1759535448067,-150.0,0.00017178,2]
[388948263,1759535448077,-1264.0,0.00017183,2]
[388948264,1759535448086,-3400.0,0.00017183,2]
[388948265,1759535448095,-881.0,0.00017183,2]
[388948266,1759535448105,-2045.0,0.00017183,2]
[388948267,1759535448115,-1307.0,0.00017183,2]
[388948268,1759535448123,-1585.0,0.00017183,2]
[388948269,1759535448132,-570.0,0.00017183,2]
[388948270,1759535448141,-603.0,0.00017183,2]
[388948271,1759535448150,-1181.0,0.00017183,2]
[388948272,1759535448159,-4237.0,0.00017183,2]
[388948273,1759535448168,-815.0,0.00017183,2]
[388948274,1759535448177,-6236.0,0.00017183,2]
[388948275,1759535448186,-4115.0,0.00017183,2]
[388948276,1759535448196,-621.0,0.00017183,2]
[388948277,1759535448205,-168.0,0.00017205,2]
[388948278,1759535448214,-1191.536531,0.00017211,2]
[388948279,1759535448223,-300.0,0.00017219,2]
[388948280,1759535448233,-775.0,0.00017229,2]
[388948281,1759535448242,-150.0,0.00017247,2]
[388948282,1759535448251,-500.0,0.00017247,2]
[388948283,1759535448260,-500.0,0.00017247,2]
[388948284,1759535448271,-150.0,0.00017247,2]
[388948285,1759535448279,-200.0,0.00017247,2]
[388948286,1759535448289,-500.0,0.00017247,2]
[388948287,1759535448298,-1602.0,0.00017247,2]
[388948288,1759535448308,-171.74051685,0.00017247,2]
[388948289,1759535448319,-250.0,0.00017247,2]
[388948290,1759535448329,-500.0,0.00017247,2]
[388948291,1759535448338,-500.0,0.00017247,2]
[388948292,1759535448348,-500.0,0.00017247,2]
[388948293,1759535448357,-500.0,0.00017274,2]
[388948294,1759535448367,-775.0,0.00017279,2]
[388948295,1759535448375,-775.0,0.0001728,2]
[388948296,1759535448385,-4000.0,0.000173,2]
[388948297,1759535448394,-362.0,0.00017306,2]
[388948298,1759535448402,-1079.0,0.00017331,2]
[388948299,1759535448411,-200.0,0.00017342,2]
[388948300,1759535448420,-200.0,0.00017342,2]
[388948301,1759535448430,-680.89,0.00017347,2]
[388948302,1759535448439,-168.0,0.0001736,2]
[388948303,1759535448449,-1079.0,0.00017361,2]
[388948304,1759535448459,-362.0,0.00017421,2]
[388948305,1759535448468,-637.3,0.00017434,2]
[388948306,1759535448477,-200.0,0.00017438,2]
[388948307,1759535448486,-151.0,0.00017438,2]
[388948308,1759535448496,-200.0,0.00017515,2]
[388948309,1759535448505,-200.0,0.00017515,2]
[388948310,1759535448515,-1000.0,0.00017521,2]
[388948311,1759535448526,-1000.0,0.00017521,2]
[388948312,1759535448535,-1000.0,0.00017521,2]
[388948313,1759535448545,-1029.34029996,0.00017521,2]
[388948314,1759535448559,-1000.0,0.00017521,2]
[388948315,1759535448569,-1000.0,0.00017521,2]
[388948316,1759535448578,-1000.0,0.00017521,2]
[388948317,1759535448587,-150.0,0.00017521,2]
[388948318,1759535448598,-415.19173698,0.00017521,2]
[388948319,1759535448607,-500.0,0.00017521,2]
[388948320,1759535448616,-150.0,0.00017521,2]
[388948321,1759535448626,-500.0,0.00017521,2]
[388948322,1759535448639,-1602.0,0.00017521,2]
[388948323,1759535448648,-500.0,0.00017521,2]
[388948324,1759535448657,-500.0,0.00017521,2]
[388948325,1759535448667,-500.0,0.00017521,2]
[388948326,1759535448676,-1191.536531,0.00017522,2]
[388948327,1759535448685,-303.91,0.00017524,2]
[388948328,1759535448694,-167.84,0.00017524,2]
[388948329,1759535448703,-168.0,0.00017531,2]
[388948330,1759535448712,-300.0,0.00017534,2]
[388948331,1759535448723,-500.0,0.00017548,2]
[388948332,1759535448732,-1246.81759716,0.00017571,2]
[388948333,1759535448741,-2350.0,0.00017579,2]
[388948334,1759535448751,-168.0,0.00017581,2]
[388948335,1759535448760,-168.0,0.00017587,2]
[388948336,1759535448771,-419.23,0.00017598,2]
[388948337,1759535448779,-168.0,0.00017606,2]
[388948338,1759535448788,-250.0,0.00017618,2]
[388948339,1759535448797,-680.89,0.00017621,2]
[388948340,1759535448806,-152.32668946,0.00017626,2]
[388948341,1759535448815,-171.86532733,0.00017626,2]
[388948342,1759535448824,-171.15304218,0.00017626,2]
[388948343,1759535448832,-165.05,0.00017634,2]
[388948344,1759535448841,-168.0,0.00017654,2]
[388948345,1759535448850,-179.87,0.00017656,2]
[388948346,1759535448859,-168.0,0.00017658,2]
[388948347,1759535448867,-362.0,0.00017674,2]
[388948348,1759535448876,-200.0,0.0001769,2]
[388948349,1759535448885,-200.0,0.0001769,2]
[388948350,1759535448894,-168.0,0.00017714,2]
[388948351,1759535448903,-12100.59,0.00017728,2]
[388948352,1759535448912,-220.0,0.00017793,2]
[388948353,1759535448921,-150.0,0.00017795,2]
[388948354,1759535448930,-275.51609315,0.00017795,2]
[388948355,1759535448939,-250.0,0.00017795,2]
[388948356,1759535448949,-500.0,0.00017795,2]
[388948357,1759535448958,-1602.0,0.00017795,2]
[388948358,1759535448967,-403.19012935,0.00017795,2]
[388948359,1759535448977,-500.0,0.00017795,2]
[388948360,1759535448986,-500.0,0.00017795,2]
[388948361,1759535448996,-1246.817597,0.00017815,2]
[388948362,1759535449005,-500.0,0.00017822,2]
[388948363,1759535449014,-1425.17695,0.0001783,2]
[388948364,1759535449023,-1191.536531,0.00017833,2]
[388948365,1759535449031,-168.0,0.00017872,2]
[388948366,1759535449041,-680.89,0.00017895,2]
[388948367,1759535449049,-775.0,0.00017949,2]
[388948368,1759535449058,-300.0,0.00017957,2]
[388948369,1759535449067,-202.1760498,0.00017986,2]
[388948370,1759535449075,-151.0,0.00017986,2]
[388948371,1759535449084,-775.0,0.00017986,2]
[388948372,1759535449093,-306.71651305,0.00017989,2]
[388948373,1759535449102,-326.31665936,0.00017989,2]
[388948374,1759535449111,-4332.09327227,0.00018,2]
[388948375,1759535449120,-201.644329,0.00018,2]
[388948376,1759535449129,-875.94,0.00018026,2]
[388948377,1759535449137,-239.84119403,0.00018048,2]
[388948378,1759535449146,-1500.0,0.00018068,2]
[388948379,1759535449155,-1500.0,0.00018068,2]
[388948380,1759535449164,-1500.0,0.00018068,2]
[388948381,1759535449172,-1500.0,0.00018068,2]
[388948382,1759535449182,-200.0,0.00018069,2]
[388948383,1759535449191,-500.0,0.00018069,2]
[388948384,1759535449201,-1602.0,0.00018069,2]
[388948385,1759535449211,-500.0,0.00018069,2]
[388948386,1759535449221,-500.0,0.00018069,2]
[388948387,1759535449230,-500.0,0.00018096,2]
[388948388,1759535449241,-161.69766812,0.00018139,2]
[388948389,1759535449251,-1191.536531,0.00018145,2]
[388948390,1759535449260,-165.7864694,0.0001816,2]
[388948391,1759535449270,-1246.817597,0.0001816,2]
[388948392,1759535449279,-680.89,0.00018168,2]
[388948393,1759535449290,-637.3,0.00018227,2]
[388948394,1759535449300,-682.429331,0.00018247,2]
[388948395,1759535449312,-682.429331,0.00018247,2]
[388948396,1759535449322,-682.429331,0.00018247,2]
[388948397,1759535449332,-682.429331,0.00018247,2]
[388948398,1759535449342,-682.429331,0.00018247,2]
[388948399,1759535449351,-682.429331,0.00018247,2]
[388948400,1759535449360,-682.429331,0.00018247,2]
[388948401,1759535449371,-682.429331,0.00018247,2]